[Event "23rd Pirc Memorial GM 2020"]
[Site "Maribor"]
[Date "2020.08.11"]
[Round "2.2"]
[White "Schwabeneder, Florian"]
[Black "Morgunov, Marc"]
[Result "0-1"]
[ECO "B51"]
[WhiteElo "2431"]
[BlackElo "2341"]
[Annotator "ChessBase"]
[PlyCount "82"]
[EventDate "2020.08.10"]
[EventType "tourn"]
[EventCountry "SLO"]
[SourceTitle "playchess.com"]
[Source "ChessBase"]
[SourceQuality "1"]
[TimeControl "40/5400+30:1800+30"]

1. e4 {[%emt 0:00:00]} c5 {[%emt 0:00:00]} 2. Nf3 {[%emt 0:00:00]} d6 {[%emt 0:00:01]} 3. Bb5+ {[%emt 0:00:06]} Nd7 {[%emt 0:00:13]} 4. d4 {[%emt 0:00:24]} cxd4 {[%emt 0:00:53]} 5. Qxd4 {[%emt 0:00:13]} Ngf6 {[%emt 0:12:38]} 6. Bg5 {[%emt 0:09:06]} e6 {[%emt 0:13:19]} 7. Nc3 {[%emt 0:04:59]} Be7 {[%emt 0:14:05]} 8. O-O-O {[%emt 0:02:18]} O-O {[%emt 0:07:57]} 9. Bxd7 {[%emt 0:27:33]} Bxd7 {[%emt 0:00:26]} 10. Bxf6 {[%emt 0:06:34]} gxf6 {[%emt 0:01:21]} 11. Qe3 {[%emt 0:02:30]} Kh8 {[%emt 0:05:28]} 12. Kb1 {[%emt 0:06:35]} b5 {[%emt 0:05:29]} 13. Nd4 {[%emt 0:11:13]} b4 {[%emt 0:03:55]} 14. Nce2 {[%emt 0:00:08]} Rg8 {[%emt 0:03:22]} 15. Ng3 {[%emt 0:02:35]} Rc8 {[%emt 0:02:55]} 16. f4 {[%emt 0:00:49]} Qc7 {[%emt 0:02:24]} 17. Qd2 {[%emt 0:08:49]} a5 {[%emt 0:01:49]} 18. f5 {[%emt 0:00:41]} e5 {[%emt 0:02:36]} 19. Nf3 {[%emt 0:07:30]} a4 {[%emt 0:02:18]} 20. b3 {[%emt 0:02:20]} Qc5 {[%emt 0:09:07]} 21. Ne1 {[%emt 0:00:49]} axb3 {[%emt 0:02:54]} 22. cxb3 {[%emt 0:00:58]} Qb5 {[%emt 0:02:22]} 23. Nc2 {[%emt 0:02:21]} Rc3 {[%emt 0:03:34]} 24. Ne3 {[%emt 0:00:09]} Bc6 {[%emt 0:02:21]} 25. Nd5 {[%emt 0:00:31]} Bxd5 {[%emt 0:00:07]} 26. Qxd5 {[%emt 0:00:07]} Qxd5 {[%emt 0:00:38]} 27. Rxd5 {[%emt 0:00:09]} h5 {[%emt 0:00:34]} 28. Rd2 {[%emt 0:02:33]} h4 {[%emt 0:00:37]} 29. Ne2 {[%emt 0:01:53]} Re3 {[%emt 0:00:28]} 30. Nc1 {[%emt 0:00:26]} Rxe4 {[%emt 0:00:15]} 31. Nd3 {[%emt 0:00:22]} Rd4 {[%emt 0:00:34]} 32. Rhd1 {[%emt 0:00:09]} d5 {[%emt 0:00:47]} 33. Nb2 {[%emt 0:01:05]} Bc5 {[%emt 0:00:24]} 34. Nd3 {[%emt 0:00:32]} Bb6 {[%emt 0:00:29]} 35. Ne1 {[%emt 0:00:11]} Rxd2 {[%emt 0:00:38]} 36. Rxd2 {[%emt 0:00:02]} Bd4 {[%emt 0:00:27]} 37. Nf3 {[%emt 0:00:16]} Bc3 {[%emt 0:00:03]} 38. Rxd5 {[%emt 0:01:09]} Rxg2 {[%emt 0:00:05]} 39. Nxh4 {[%emt 0:00:51]} Rxh2 {[%emt 0:00:50]} 40. Nf3 {[%emt 0:00:00]} Rf2 {[%emt 0:00:00]} 41. Nh4 {[%emt 0:01:37]} Rf4 {[%emt 0:01:02]} 0-1

[Event "23rd Pirc Memorial GM 2020"]
[Site "Maribor"]
[Date "2020.08.11"]
[Round "2.3"]
[White "Subelj, Jan"]
[Black "Marn, Jan"]
[Result "1-0"]
[ECO "C54"]
[WhiteElo "2408"]
[BlackElo "2360"]
[Annotator "ChessBase"]
[PlyCount "69"]
[EventDate "2020.08.10"]
[EventType "tourn"]
[EventCountry "SLO"]
[SourceTitle "playchess.com"]
[Source "ChessBase"]
[SourceQuality "1"]
[TimeControl "40/5400+30:1800+30"]

1. e4 {[%emt 0:00:00]} e5 {[%emt 0:00:00]} 2. Nf3 {[%emt 0:00:36]} Nc6 {[%emt 0:00:00]} 3. Bc4 {[%emt 0:00:57]} Bc5 {[%emt 0:00:43]} 4. O-O {[%emt 0:00:29]} Nf6 {[%emt 0:00:11]} 5. d3 {[%emt 0:00:17]} d6 {[%emt 0:02:28]} 6. c3 {[%emt 0:00:44]} h6 {[%emt 0:06:56]} 7. Re1 {[%emt 0:01:04]} O-O {[%emt 0:01:22]} 8. h3 {[%emt 0:00:33]} a6 {[%emt 0:04:04]} 9. Bb3 {[%emt 0:00:38]} Ba7 {[%emt 0:00:56]} 10. Nbd2 {[%emt 0:01:06]} Ne7 {[%emt 0:02:03]} 11. Nf1 {[%emt 0:04:12]} Ng6 {[%emt 0:01:29]} 12. Ng3 {[%emt 0:00:20]} c6 {[%emt 0:01:08]} 13. d4 {[%emt 0:01:56]} Qc7 {[%emt 0:07:43]} 14. Be3 {[%emt 0:01:29]} Be6 {[%emt 0:06:44]} 15. Bxe6 {[%emt 0:02:48]} fxe6 {[%emt 0:02:53]} 16. dxe5 {[%emt 0:00:29]} dxe5 {[%emt 0:16:44]} 17. Qb3 {[%emt 0:02:10]} Rfe8 {[%emt 0:02:20]} 18. Bxa7 {[%emt 0:00:46]} Rxa7 {[%emt 0:00:11]} 19. Rad1 {[%emt 0:00:16]} c5 {[%emt 0:04:45]} 20. a4 {[%emt 0:26:38]} b6 {[%emt 0:16:49]} 21. Qc4 {[%emt 0:06:43]} Qc6 {[%emt 0:01:49]} 22. Rd2 {[%emt 0:11:18]} b5 {[%emt 0:01:07]} 23. Qa2 {[%emt 0:00:15]} Rd7 {[%emt 0:06:11]} 24. Rxd7 {[%emt 0:01:39]} Nxd7 {[%emt 0:01:50]} 25. Rd1 {[%emt 0:01:28]} c4 {[%emt 0:00:28]} 26. axb5 {[%emt 0:00:42]} axb5 {[%emt 0:00:09]} 27. Qa7 {[%emt 0:00:07]} Nf6 {[%emt 0:08:55]} 28. Ra1 {[%emt 0:05:19]} Rd8 {[%emt 0:02:49]} 29. Ra6 {[%emt 0:01:47]} Qd7 {[%emt 0:01:11]} 30. Qb6 {[%emt 0:00:47]} Nf8 {[%emt 0:00:26]} 31. Nxe5 {[%emt 0:01:43]} Qd1+ {[%emt 0:00:06]} 32. Kh2 {[%emt 0:00:02]} Rd2 {[%emt 0:00:43]} 33. Ra8 {[%emt 0:00:10]} Rd6 {[%emt 0:00:33]} 34. Qb8 {[%emt 0:00:17]} N6h7 {[%emt 0:00:05]} 35. Qe8 {[%emt 0:00:26]} 1-0

[Event "23rd Pirc Memorial GM 2020"]
[Site "Maribor"]
[Date "2020.08.11"]
[Round "2.4"]
[White "Mikhalchishin, Adrian"]
[Black "Kozul, Zdenko"]
[Result "1/2-1/2"]
[ECO "D79"]
[WhiteElo "2458"]
[BlackElo "2597"]
[Annotator "ChessBase"]
[PlyCount "34"]
[EventDate "2020.08.10"]
[EventType "tourn"]
[EventCountry "SLO"]
[SourceTitle "playchess.com"]
[Source "ChessBase"]
[SourceQuality "1"]
[TimeControl "40/5400+30:1800+30"]

1. c4 {[%emt 0:00:00]} Nf6 {[%emt 0:00:06]} 2. Nf3 {[%emt 0:00:00]} g6 {[%emt 0:00:00]} 3. g3 {[%emt 0:00:00]} Bg7 {[%emt 0:00:00]} 4. Bg2 {[%emt 0:00:00]} O-O {[%emt 0:00:00]} 5. d4 {[%emt 0:00:00]} c6 {[%emt 0:00:00]} 6. Nc3 {[%emt 0:00:00]} d5 {[%emt 0:00:00]} 7. cxd5 {[%emt 0:00:00]} cxd5 {[%emt 0:00:06]} 8. Ne5 {[%emt 0:00:00]} e6 {[%emt 0:00:08]} 9. O-O {[%emt 0:00:00]} Bd7 {[%emt 0:00:05]} 10. f4 {[%emt 0:01:01]} Nc6 {[%emt 0:00:22]} 11. Be3 {[%emt 0:00:10]} Ne8 {[%emt 0:00:10]} 12. Bf2 {[%emt 0:00:38]} Nd6 {[%emt 0:00:08]} 13. e4 {[%emt 0:00:26]} dxe4 {[%emt 0:00:18]} 14. Nxe4 {[%emt 0:00:03]} Nxe4 {[%emt 0:00:06]} 15. Bxe4 {[%emt 0:00:05]} Ne7 {[%emt 0:00:11]} 16. Qb3 {[%emt 0:00:47]} Bc6 {[%emt 0:00:15]} 17. Qf3 {[%emt 1:35:20]} Bd7 {[%emt 1:36:35]} 1/2-1/2

[Event "23rd Pirc Memorial GM 2020"]
[Site "Maribor"]
[Date "2020.08.12"]
[Round "3.1"]
[White "Lampert, Jonas"]
[Black "Mohr, Georg"]
[Result "1-0"]
[ECO "E92"]
[WhiteElo "2531"]
[BlackElo "2434"]
[Annotator "ChessBase"]
[PlyCount "71"]
[EventDate "2020.08.10"]
[EventType "tourn"]
[EventCountry "SLO"]
[SourceTitle "playchess.com"]
[Source "ChessBase"]
[SourceQuality "1"]
[TimeControl "40/5400+30:1800+30"]

1. d4 {[%emt 0:00:00]} Nf6 {[%emt 0:01:08]} 2. c4 {[%emt 0:00:00]} g6 {[%emt 0:02:33]} 3. Nc3 {[%emt 0:00:00]} Bg7 {[%emt 0:00:14]} 4. e4 {[%emt 0:00:00]} d6 {[%emt 0:00:03]} 5. Be2 {[%emt 0:00:00]} O-O {[%emt 0:00:05]} 6. Be3 {[%emt 0:00:01]} c6 {[%emt 0:00:45]} 7. Nf3 {[%emt 0:02:10]} e5 {[%emt 0:00:22]} 8. d5 {[%emt 0:00:14]} Ng4 {[%emt 0:00:09]} 9. Bg5 {[%emt 0:00:54]} f6 {[%emt 0:00:06]} 10. Bh4 {[%emt 0:00:28]} c5 {[%emt 0:00:11]} 11. Nd2 {[%emt 0:07:43]} h5 {[%emt 0:00:13]} 12. Nf1 {[%emt 0:09:43]} Nh6 {[%emt 0:04:04]} 13. f3 {[%emt 0:00:19]} Nf7 {[%emt 0:03:37]} 14. Qc2 {[%emt 0:04:03]} Bh6 {[%emt 0:02:17]} 15. Bf2 {[%emt 0:24:45]} Kg7 {[%emt 0:07:52]} 16. Ne3 {[%emt 0:02:39]} h4 {[%emt 0:08:43]} 17. Bd3 {[%emt 0:06:08]} Ng5 {[%emt 0:20:03]} 18. Ke2 {[%emt 0:03:13]} h3 {[%emt 0:05:08]} 19. g3 {[%emt 0:00:41]} Na6 {[%emt 0:01:20]} 20. a3 {[%emt 0:01:03]} f5 {[%emt 0:08:15]} 21. exf5 {[%emt 0:15:50]} gxf5 {[%emt 0:02:07]} 22. Nxf5+ {[%emt 0:02:25]} Bxf5 {[%emt 0:00:27]} 23. Bxf5 {[%emt 0:00:01]} Nxf3 {[%emt 0:00:15]} 24. g4 {[%emt 0:08:13]} Nd4+ {[%emt 0:32:03]} 25. Bxd4 {[%emt 0:02:44]} cxd4 {[%emt 0:00:00]} 26. Ne4 {[%emt 0:00:02]} Nc5 {[%emt 0:00:00]} 27. Nxc5 {[%emt 0:00:22]} dxc5 {[%emt 0:00:00]} 28. g5 {[%emt 0:00:57]} Bxg5 {[%emt 0:00:00]} 29. Rhg1 {[%emt 0:00:20]} Kh8 {[%emt 0:00:00]} 30. Raf1 {[%emt 0:00:17]} Bh6 {[%emt 0:00:00]} 31. Qe4 {[%emt 0:03:27]} Qd6 {[%emt 0:00:00]} 32. Rg6 {[%emt 0:01:19]} Rf6 {[%emt 0:00:00]} 33. Be6 {[%emt 0:00:49]} d3+ {[%emt 0:00:00]} 34. Qxd3 {[%emt 0:03:08]} e4 {[%emt 0:00:00]} 35. Rxh6+ {[%emt 0:00:48]} Kg7 {[%emt 0:00:00]} 36. Rg1+ {[%emt 0:00:33]} 1-0

[Event "23rd Pirc Memorial GM 2020"]
[Site "Maribor"]
[Date "2020.08.12"]
[Round "3.3"]
[White "Marn, Jan"]
[Black "Mikhalchishin, Adrian"]
[Result "0-1"]
[ECO "D85"]
[WhiteElo "2360"]
[BlackElo "2458"]
[Annotator "ChessBase"]
[PlyCount "54"]
[EventDate "2020.08.10"]
[EventType "tourn"]
[EventCountry "SLO"]
[SourceTitle "playchess.com"]
[Source "ChessBase"]
[SourceQuality "1"]
[TimeControl "40/5400+30:1800+30"]

1. d4 {[%emt 0:00:00]} Nf6 {[%emt 0:00:05]} 2. c4 {[%emt 0:00:01]} g6 {[%emt 0:00:39]} 3. Nc3 {[%emt 0:00:15]} d5 {[%emt 0:00:05]} 4. cxd5 {[%emt 0:00:05]} Nxd5 {[%emt 0:00:03]} 5. Na4 {[%emt 0:00:59]} Bg7 {[%emt 0:02:30]} 6. e4 {[%emt 0:02:16]} Nb6 {[%emt 0:00:06]} 7. Be3 {[%emt 0:00:22]} O-O {[%emt 0:00:26]} 8. Nf3 {[%emt 0:03:04]} Nxa4 {[%emt 0:05:22]} 9. Qxa4 {[%emt 0:00:16]} c5 {[%emt 0:00:02]} 10. Rc1 {[%emt 0:15:47]} Bd7 {[%emt 0:08:37]} 11. Qb3 {[%emt 0:09:43]} cxd4 {[%emt 0:05:40]} 12. Bxd4 {[%emt 0:06:27]} Bxd4 {[%emt 0:02:52]} 13. Nxd4 {[%emt 0:00:08]} Nc6 {[%emt 0:00:10]} 14. Nxc6 {[%emt 0:12:37]} Bxc6 {[%emt 0:00:53]} 15. Bd3 {[%emt 0:00:07]} Qa5+ {[%emt 0:10:32]} 16. Rc3 {[%emt 0:04:25]} Rad8 {[%emt 0:04:07]} 17. O-O {[%emt 0:01:16]} Rd4 {[%emt 0:00:59]} 18. f3 {[%emt 0:10:18]} Rfd8 {[%emt 0:09:52]} 19. Bc4 {[%emt 0:02:48]} Kf8 {[%emt 0:02:44]} 20. a3 {[%emt 0:02:47]} Rd2 {[%emt 0:05:50]} 21. Rfc1 {[%emt 0:23:40]} Qc5+ {[%emt 0:04:41]} 22. Kh1 {[%emt 0:00:42]} Qf2 {[%emt 0:14:55]} 23. Bf1 {[%emt 0:02:47]} Rxb2 {[%emt 0:00:32]} 24. Qc4 {[%emt 0:00:28]} Bb5 {[%emt 0:01:12]} 25. Qxb5 {[%emt 0:00:36]} Rxb5 {[%emt 0:00:24]} 26. Bxb5 {[%emt 0:00:06]} Rd2 {[%emt 0:00:41]} 27. Bf1 {[%emt 0:00:07]} b5 {[%emt 0:00:48]} 0-1

[Event "23rd Pirc Memorial GM 2020"]
[Site "Maribor"]
[Date "2020.08.12"]
[Round "3.4"]
[White "Morgunov, Marc"]
[Black "Subelj, Jan"]
[Result "1/2-1/2"]
[ECO "C92"]
[WhiteElo "2341"]
[BlackElo "2408"]
[Annotator "ChessBase"]
[PlyCount "78"]
[EventDate "2020.08.10"]
[EventType "tourn"]
[EventCountry "SLO"]
[SourceTitle "playchess.com"]
[Source "ChessBase"]
[SourceQuality "1"]
[TimeControl "40/5400+30:1800+30"]

1. e4 {[%emt 0:00:00]} e5 {[%emt 0:00:16]} 2. Nf3 {[%emt 0:00:00]} Nc6 {[%emt 0:00:34]} 3. Bb5 {[%emt 0:00:09]} a6 {[%emt 0:00:28]} 4. Ba4 {[%emt 0:00:14]} Nf6 {[%emt 0:00:38]} 5. O-O {[%emt 0:00:11]} Be7 {[%emt 0:00:30]} 6. Re1 {[%emt 0:00:11]} b5 {[%emt 0:00:30]} 7. Bb3 {[%emt 0:00:05]} d6 {[%emt 0:00:33]} 8. c3 {[%emt 0:00:05]} O-O {[%emt 0:00:31]} 9. h3 {[%emt 0:00:15]} Bb7 {[%emt 0:01:13]} 10. d4 {[%emt 0:02:11]} Nd7 {[%emt 0:01:29]} 11. Nbd2 {[%emt 0:06:44]} Re8 {[%emt 0:01:02]} 12. Nf1 {[%emt 0:02:08]} exd4 {[%emt 0:02:30]} 13. cxd4 {[%emt 0:00:30]} Na5 {[%emt 0:00:34]} 14. Bc2 {[%emt 0:01:08]} c5 {[%emt 0:01:17]} 15. Ng3 {[%emt 0:06:26]} g6 {[%emt 0:09:07]} 16. Bf4 {[%emt 0:11:31]} cxd4 {[%emt 0:03:33]} 17. Nxd4 {[%emt 0:07:53]} Bf6 {[%emt 0:06:45]} 18. b3 {[%emt 0:14:38]} Be5 {[%emt 0:09:35]} 19. Qd2 {[%emt 0:08:11]} Rc8 {[%emt 0:05:06]} 20. Rac1 {[%emt 0:03:05]} Nf6 {[%emt 0:09:41]} 21. Red1 {[%emt 0:06:04]} Qb6 {[%emt 0:16:39]} 22. Nf3 {[%emt 0:06:37]} Bb2 {[%emt 0:07:19]} 23. Rb1 {[%emt 0:01:25]} Bc3 {[%emt 0:01:04]} 24. Qxd6 {[%emt 0:02:47]} Qxd6 {[%emt 0:00:30]} 25. Bxd6 {[%emt 0:03:29]} Nxe4 {[%emt 0:00:39]} 26. Nxe4 {[%emt 0:00:40]} Bxe4 {[%emt 0:00:08]} 27. Bxe4 {[%emt 0:00:05]} Rxe4 {[%emt 0:00:07]} 28. Rbc1 {[%emt 0:00:53]} Rc6 {[%emt 0:03:14]} 29. Ng5 {[%emt 0:06:11]} Re2 {[%emt 0:07:38]} 30. b4 {[%emt 0:09:19]} Nb7 {[%emt 0:02:48]} 31. Bg3 {[%emt 0:00:56]} Rc4 {[%emt 0:01:49]} 32. Rd7 {[%emt 0:00:44]} Bd2 {[%emt 0:01:37]} 33. Rxc4 {[%emt 0:00:24]} bxc4 {[%emt 0:00:01]} 34. Nf3 {[%emt 0:01:16]} c3 {[%emt 0:00:35]} 35. Nxd2 {[%emt 0:00:12]} cxd2 {[%emt 0:00:05]} 36. Kh2 {[%emt 0:00:06]} g5 {[%emt 0:03:23]} 37. h4 {[%emt 0:01:13]} h6 {[%emt 0:00:42]} 38. hxg5 {[%emt 0:00:27]} hxg5 {[%emt 0:00:00]} 39. f4 {[%emt 0:00:23]} f6 {[%emt 0:00:00]} 1/2-1/2

[Event "23rd Pirc Memorial GM 2020"]
[Site "Maribor"]
[Date "2020.08.12"]
[Round "3.5"]
[White "Markoja, Boris"]
[Black "Schwabeneder, Florian"]
[Result "1-0"]
[ECO "E14"]
[WhiteElo "2440"]
[BlackElo "2431"]
[Annotator "ChessBase"]
[PlyCount "151"]
[EventDate "2020.08.10"]
[EventType "tourn"]
[EventCountry "SLO"]
[SourceTitle "playchess.com"]
[Source "ChessBase"]
[SourceQuality "1"]
[TimeControl "40/5400+30:1800+30"]

1. c4 {[%emt 0:00:00]} e6 {[%emt 0:02:11]} 2. Nf3 {[%emt 0:00:00]} d5 {[%emt 0:00:17]} 3. e3 {[%emt 0:00:39]} Nf6 {[%emt 0:01:02]} 4. b3 {[%emt 0:00:29]} b6 {[%emt 0:05:45]} 5. Bb2 {[%emt 0:01:58]} Bb7 {[%emt 0:00:38]} 6. Nc3 {[%emt 0:01:03]} Nbd7 {[%emt 0:02:17]} 7. d4 {[%emt 0:04:41]} Bd6 {[%emt 0:01:26]} 8. Bd3 {[%emt 0:02:07]} O-O {[%emt 0:01:14]} 9. O-O {[%emt 0:01:02]} a6 {[%emt 0:11:53]} 10. Qe2 {[%emt 0:05:30]} dxc4 {[%emt 0:06:21]} 11. bxc4 {[%emt 0:01:04]} c5 {[%emt 0:00:09]} 12. Rfd1 {[%emt 0:03:16]} Qe7 {[%emt 0:04:28]} 13. Nd2 {[%emt 0:13:17]} Rac8 {[%emt 0:24:40]} 14. a4 {[%emt 0:04:15]} Rfd8 {[%emt 0:09:47]} 15. d5 {[%emt 0:09:55]} Ne5 {[%emt 0:02:07]} 16. e4 {[%emt 0:02:40]} exd5 {[%emt 0:01:00]} 17. exd5 {[%emt 0:04:17]} Nxd3 {[%emt 0:00:42]} 18. Qxd3 {[%emt 0:00:04]} Re8 {[%emt 0:00:13]} 19. Nf3 {[%emt 0:04:07]} Qd7 {[%emt 0:03:55]} 20. Rab1 {[%emt 0:02:56]} Rb8 {[%emt 0:03:17]} 21. Bc1 {[%emt 0:06:43]} Bc8 {[%emt 0:01:05]} 22. Bg5 {[%emt 0:00:51]} Qf5 {[%emt 0:00:48]} 23. Bxf6 {[%emt 0:02:33]} Qxd3 {[%emt 0:01:59]} 24. Rxd3 {[%emt 0:00:17]} Bf5 {[%emt 0:01:03]} 25. Rdd1 {[%emt 0:03:34]} Bxb1 {[%emt 0:00:56]} 26. Rxb1 {[%emt 0:00:34]} gxf6 {[%emt 0:00:07]} 27. Kf1 {[%emt 0:01:37]} f5 {[%emt 0:09:48]} 28. Nh4 {[%emt 0:02:25]} Be5 {[%emt 0:00:10]} 29. Ne2 {[%emt 0:02:38]} f4 {[%emt 0:00:13]} 30. Nf5 {[%emt 0:02:01]} Kf8 {[%emt 0:00:20]} 31. g3 {[%emt 0:02:41]} fxg3 {[%emt 0:00:50]} 32. hxg3 {[%emt 0:00:11]} Bf6 {[%emt 0:02:47]} 33. f4 {[%emt 0:03:05]} Re4 {[%emt 0:01:19]} 34. Rc1 {[%emt 0:01:15]} h5 {[%emt 0:01:13]} 35. Kf2 {[%emt 0:01:46]} Rbe8 {[%emt 0:00:33]} 36. Rc2 {[%emt 0:01:34]} Rd8 {[%emt 0:00:07]} 37. Kf3 {[%emt 0:00:55]} Ree8 {[%emt 0:00:11]} 38. Rd2 {[%emt 0:03:13]} Rd7 {[%emt 0:00:59]} 39. d6 {[%emt 0:04:50]} b5 {[%emt 0:01:00]} 40. axb5 {[%emt 0:00:00]} axb5 {[%emt 0:00:00]} 41. cxb5 {[%emt 0:01:59]} Ra7 {[%emt 0:15:52]} 42. Rc2 {[%emt 0:19:40]} Ra3+ {[%emt 0:03:11]} 43. Kf2 {[%emt 0:00:12]} Rb3 {[%emt 0:01:42]} 44. d7 {[%emt 0:01:19]} Rd8 {[%emt 0:00:55]} 45. Rxc5 {[%emt 0:00:34]} Rxd7 {[%emt 0:00:25]} 46. Rc6 {[%emt 0:02:43]} Bd8 {[%emt 0:03:27]} 47. Ned4 {[%emt 0:00:42]} Rd3 {[%emt 0:02:23]} 48. Rc8 {[%emt 0:02:27]} Kg8 {[%emt 0:03:06]} 49. Ke2 {[%emt 0:01:28]} R3xd4 {[%emt 0:01:20]} 50. Nxd4 {[%emt 0:00:05]} Rxd4 {[%emt 0:00:07]} 51. b6 {[%emt 0:00:03]} Rb4 {[%emt 0:01:52]} 52. Rxd8+ {[%emt 0:00:08]} Kg7 {[%emt 0:00:05]} 53. Rd6 {[%emt 0:01:18]} Rb3 {[%emt 0:01:59]} 54. Kf2 {[%emt 0:05:59]} f6 {[%emt 0:00:55]} 55. Rd7+ {[%emt 0:00:12]} Kg6 {[%emt 0:00:02]} 56. b7 {[%emt 0:00:10]} Kf5 {[%emt 0:00:44]} 57. Rg7 {[%emt 0:00:47]} Ke4 {[%emt 0:00:36]} 58. Ke2 {[%emt 0:01:49]} Rb2+ {[%emt 0:00:18]} 59. Kd1 {[%emt 0:00:04]} Kf3 {[%emt 0:01:06]} 60. Kc1 {[%emt 0:00:35]} Rb6 {[%emt 0:00:19]} 61. Kd2 {[%emt 0:00:10]} f5 {[%emt 0:00:40]} 62. Kd3 {[%emt 0:00:30]} Rb4 {[%emt 0:00:33]} 63. Kc3 {[%emt 0:00:08]} Rb5 {[%emt 0:00:32]} 64. Kc4 {[%emt 0:00:25]} Rb1 {[%emt 0:00:29]} 65. Kc5 {[%emt 0:01:47]} Rb2 {[%emt 0:00:22]} 66. Kc6 {[%emt 0:00:37]} Rc2+ {[%emt 0:00:13]} 67. Kd6 {[%emt 0:00:15]} Rb2 {[%emt 0:00:20]} 68. Kc7 {[%emt 0:00:10]} Rc2+ {[%emt 0:00:07]} 69. Kd8 {[%emt 0:00:11]} Rb2 {[%emt 0:00:12]} 70. Kc8 {[%emt 0:00:42]} Rc2+ {[%emt 0:00:33]} 71. Rc7 {[%emt 0:00:13]} Rb2 {[%emt 0:00:09]} 72. Rc3+ {[%emt 0:00:16]} Kg4 {[%emt 0:00:08]} 73. b8=Q {[%emt 0:00:19]} Rxb8+ {[%emt 0:00:08]} 74. Kxb8 {[%emt 0:00:02]} h4 {[%emt 0:00:09]} 75. gxh4 {[%emt 0:00:07]} Kxf4 {[%emt 0:00:09]} 76. h5 {[%emt 0:00:06]} 1-0

[Event "23rd Pirc Memorial GM 2020"]
[Site "Maribor"]
[Date "2020.08.12"]
[Round "4.3"]
[White "Mikhalchishin, Adrian"]
[Black "Morgunov, Marc"]
[Result "1/2-1/2"]
[ECO "E63"]
[WhiteElo "2458"]
[BlackElo "2341"]
[Annotator "ChessBase"]
[PlyCount "64"]
[EventDate "2020.08.10"]
[EventType "tourn"]
[EventCountry "SLO"]
[SourceTitle "playchess.com"]
[Source "ChessBase"]
[SourceQuality "1"]
[TimeControl "40/5400+30:1800+30"]

1. d4 {[%emt 0:00:00]} Nf6 {[%emt 0:00:00]} 2. Nf3 {[%emt 0:00:00]} g6 {[%emt 0:00:00]} 3. c4 {[%emt 0:00:36]} Bg7 {[%emt 0:00:00]} 4. g3 {[%emt 0:00:06]} O-O {[%emt 0:00:07]} 5. Bg2 {[%emt 0:00:04]} d6 {[%emt 0:00:13]} 6. O-O {[%emt 0:01:08]} Nc6 {[%emt 0:00:18]} 7. Nc3 {[%emt 0:00:52]} a6 {[%emt 0:00:09]} 8. e3 {[%emt 0:00:40]} Rb8 {[%emt 0:01:07]} 9. Qe2 {[%emt 0:00:51]} b5 {[%emt 0:02:14]} 10. Rd1 {[%emt 0:05:43]} e6 {[%emt 0:15:07]} 11. e4 {[%emt 0:29:21]} Nd7 {[%emt 0:15:23]} 12. Bg5 {[%emt 0:10:54]} Qe8 {[%emt 0:02:54]} 13. cxb5 {[%emt 0:16:58]} axb5 {[%emt 0:01:01]} 14. Rac1 {[%emt 0:02:22]} b4 {[%emt 0:11:33]} 15. Na4 {[%emt 0:02:51]} Nb6 {[%emt 0:00:21]} 16. Nxb6 {[%emt 0:02:09]} Rxb6 {[%emt 0:00:10]} 17. Qd2 {[%emt 0:08:47]} d5 {[%emt 0:11:40]} 18. exd5 {[%emt 0:07:43]} exd5 {[%emt 0:00:13]} 19. Qf4 {[%emt 0:01:02]} Qd7 {[%emt 0:04:58]} 20. Bf6 {[%emt 0:00:53]} Bxf6 {[%emt 0:02:33]} 21. Qxf6 {[%emt 0:00:03]} Nd8 {[%emt 0:00:09]} 22. Qf4 {[%emt 0:00:40]} Ne6 {[%emt 0:00:40]} 23. Qe3 {[%emt 0:01:36]} Qa4 {[%emt 0:03:17]} 24. Ne5 {[%emt 0:01:18]} Qxa2 {[%emt 0:01:52]} 25. Nc6 {[%emt 0:01:41]} Re8 {[%emt 0:02:27]} 26. b3 {[%emt 0:01:37]} Rb5 {[%emt 0:04:26]} 27. Ra1 {[%emt 0:01:12]} Qc2 {[%emt 0:00:59]} 28. Na7 {[%emt 0:00:23]} Rb6 {[%emt 0:01:40]} 29. Nxc8 {[%emt 0:00:45]} Rxc8 {[%emt 0:00:06]} 30. Bxd5 {[%emt 0:00:03]} Rd8 {[%emt 0:01:35]} 31. Bc4 {[%emt 0:01:26]} c5 {[%emt 0:03:31]} 32. Rac1 {[%emt 0:01:07]} Qf5 {[%emt 0:02:05]} 1/2-1/2

[Event "23rd Pirc Memorial GM 2020"]
[Site "Maribor"]
[Date "2020.08.12"]
[Round "4.4"]
[White "Bratkovic, Sham"]
[Black "Marn, Jan"]
[Result "0-1"]
[ECO "D30"]
[WhiteElo "2236"]
[BlackElo "2360"]
[Annotator "ChessBase"]
[PlyCount "80"]
[EventDate "2020.08.10"]
[EventType "tourn"]
[EventCountry "SLO"]
[SourceTitle "playchess.com"]
[Source "ChessBase"]
[SourceQuality "1"]
[TimeControl "40/5400+30:1800+30"]

1. d4 {[%emt 0:00:00]} d5 {[%emt 0:00:09]} 2. c4 {[%emt 0:00:04]} e6 {[%emt 0:00:11]} 3. Nf3 {[%emt 0:00:53]} c6 {[%emt 0:00:15]} 4. e3 {[%emt 0:00:48]} Bd6 {[%emt 0:01:21]} 5. b3 {[%emt 0:00:51]} Nf6 {[%emt 0:06:20]} 6. Bd3 {[%emt 0:01:03]} O-O {[%emt 0:00:34]} 7. Bb2 {[%emt 0:01:20]} Nbd7 {[%emt 0:01:28]} 8. Nbd2 {[%emt 0:00:37]} b6 {[%emt 0:19:35]} 9. O-O {[%emt 0:01:23]} Bb7 {[%emt 0:00:09]} 10. Ne5 {[%emt 0:00:49]} c5 {[%emt 0:04:50]} 11. f4 {[%emt 0:03:07]} Ne4 {[%emt 0:01:40]} 12. cxd5 {[%emt 0:04:47]} exd5 {[%emt 0:03:22]} 13. Nxe4 {[%emt 0:02:21]} dxe4 {[%emt 0:00:35]} 14. Bc4 {[%emt 0:00:27]} Nf6 {[%emt 0:05:44]} 15. Qc2 {[%emt 0:06:55]} Rc8 {[%emt 0:06:14]} 16. Qf2 {[%emt 0:04:25]} Qe7 {[%emt 0:10:39]} 17. Rad1 {[%emt 0:03:56]} a6 {[%emt 0:05:35]} 18. a4 {[%emt 0:01:49]} cxd4 {[%emt 0:01:27]} 19. exd4 {[%emt 0:01:48]} Nd5 {[%emt 0:04:55]} 20. f5 {[%emt 0:11:25]} f6 {[%emt 0:04:33]} 21. Ng4 {[%emt 0:03:13]} b5 {[%emt 0:00:38]} 22. axb5 {[%emt 0:03:27]} axb5 {[%emt 0:00:04]} 23. Bxd5+ {[%emt 0:13:23]} Bxd5 {[%emt 0:00:05]} 24. Qe3 {[%emt 0:00:16]} Rc2 {[%emt 0:05:26]} 25. Rf2 {[%emt 0:03:33]} Rfc8 {[%emt 0:00:56]} 26. Rdd2 {[%emt 0:03:01]} Rxb2 {[%emt 0:06:13]} 27. Rxb2 {[%emt 0:00:18]} h5 {[%emt 0:00:05]} 28. Rfc2 {[%emt 0:04:19]} Rxc2 {[%emt 0:00:34]} 29. Rxc2 {[%emt 0:00:02]} hxg4 {[%emt 0:00:08]} 30. Qe2 {[%emt 0:01:15]} Qa7 {[%emt 0:07:50]} 31. Qd1 {[%emt 0:04:04]} Bf8 {[%emt 0:01:09]} 32. Rc1 {[%emt 0:02:15]} Qa2 {[%emt 0:00:29]} 33. Qxg4 {[%emt 0:01:36]} Qxb3 {[%emt 0:01:23]} 34. Qf4 {[%emt 0:00:54]} Qd3 {[%emt 0:01:08]} 35. h4 {[%emt 0:01:32]} Qxd4+ {[%emt 0:00:23]} 36. Kh1 {[%emt 0:00:04]} Qe5 {[%emt 0:00:34]} 37. Qg4 {[%emt 0:01:03]} e3 {[%emt 0:00:51]} 38. h5 {[%emt 0:00:11]} e2 {[%emt 0:00:41]} 39. Re1 {[%emt 0:00:07]} Bd6 {[%emt 0:00:33]} 40. Qh3 {[%emt 0:00:00]} Qg3 {[%emt 0:00:00]} 0-1